bitfinex-derivatives/quotes_ETHF0:USTF0_20250114
["timestamp","ask_amount","ask_price","bid_price","bid_amount"]
[1736838344229,0.4682,3191.0,3190.9,0.31353]
[1736838344423,0.78172,3191.0,3190.9,0.31353]
[1736838344624,2.05072269,3191.0,3190.9,0.31353]
[1736838344821,1.73720269,3191.0,3190.8,3.2078]
[1736838345016,1.30943,3190.9,3190.8,3.52133]
[1736838345421,2.57843269,3190.9,3190.8,3.52133]
[1736838345622,2.26490269,3190.9,3190.8,3.52133]
[1736838345927,2.57843269,3190.9,3190.8,3.52133]
[1736838346127,2.26490269,3190.9,3190.8,3.52133]
[1736838346327,2.57843269,3190.9,3190.8,3.52133]
[1736838347528,2.57843269,3190.9,3190.8,3.2078]
[1736838347834,2.57843269,3190.9,3190.8,3.52134]
[1736838348429,2.26490269,3190.9,3190.8,3.52134]
[1736838348634,2.57843269,3190.9,3190.8,3.52134]
[1736838349428,2.57843269,3190.9,3190.8,3.2078]
[1736838350636,0.31358,3190.4,3190.3,3.52137]
[1736838351135,1.58258269,3190.4,3190.3,3.52137]
[1736838352040,1.58258269,3190.4,3190.3,3.2078]
[1736838352533,1.26900269,3190.4,3189.8,3.2078]
[1736838352733,0.31363,3189.9,3189.8,3.2078]
[1736838353234,1.58263269,3189.9,3189.8,3.52144]
[1736838353637,0.31364,3189.8,3189.7,0.31364]
[1736838354032,1.58264269,3189.8,3189.7,0.31364]
[1736838354232,1.26900269,3189.8,3189.7,0.31364]
[1736838354538,1.58264269,3189.8,3189.7,0.31364]
[1736838356330,1.26900269,3189.8,3189.7,0.31364]
[1736838356533,1.58264269,3189.8,3189.7,0.31364]
[1736838359541,1.26900269,3189.8,3189.7,0.31364]
[1736838359746,0.2507,3189.9,3189.8,0.31364]
[1736838359945,0.2507,3189.9,3189.8,3.52144]
[1736838360144,1.51970269,3189.9,3189.8,3.52144]
[1736838360350,0.2507,3189.9,3189.8,3.52144]
[1736838360850,0.31355,3190.7,3190.6,0.31355]
[1736838361247,1.58255269,3190.7,3190.6,0.31355]
[1736838362048,1.83325269,3190.7,3190.6,0.31355]
[1736838362549,0.2507,3190.7,3190.6,0.31355]
[1736838363556,0.2507,3190.7,3190.6,3.52135]
[1736838367956,1.83325269,3190.7,3190.6,3.2078]
[1736838370159,0.3136,3190.3,3190.2,3.52139]
[1736838370553,1.26900269,3190.3,3190.2,3.52139]
[1736838371052,1.58259269,3190.3,3190.2,3.52139]
[1736838371459,1.26900269,3190.3,3190.2,3.52139]
[1736838371959,1.0085,3190.5,3190.4,0.31358]
[1736838372147,0.2507,3190.7,3190.2,3.99178]
[1736838372354,0.2507,3190.7,3190.6,0.31356]
[1736838372960,1.51970269,3190.7,3190.6,0.31356]
[1736838374156,1.51970269,3190.7,3190.6,3.52136]
[1736838375059,0.2507,3190.7,3190.6,3.52136]
[1736838379165,0.3938,3190.7,3190.6,3.52136]
[1736838379560,0.6445,3190.7,3190.6,3.52136]
[1736838381169,0.6445,3190.7,3190.6,8.52136]
[1736838382657,0.9619,3191.5,3190.6,8.2078]
[1736838382864,1.27537,3191.5,3191.4,0.31348]
[1736838383069,0.9619,3191.5,3191.4,0.31348]
[1736838383370,2.54437269,3191.5,3191.4,0.31348]
[1736838383764,2.23090269,3191.5,3191.4,0.31348]
[1736838384065,2.73210269,3191.5,3191.4,0.31348]
[1736838386171,1.4631,3191.5,3191.4,0.31348]
[1736838387460,2.2464,3191.5,3191.4,0.31348]
[1736838388764,3.51540269,3191.5,3191.4,0.31348]
[1736838389568,0.31349,3191.4,3191.3,0.31348]
[1736838389768,3.80957319,3191.5,3191.2,3.2078]
[1736838389975,0.31353,3191.0,3190.9,0.31351]
[1736838390572,1.26900269,3191.0,3190.9,0.31351]
[1736838391072,1.77170269,3191.0,3190.9,0.31351]
[1736838391664,1.77170269,3191.0,3190.7,3.2078]
[1736838391864,0.31354,3190.9,3190.8,0.31353]
[1736838392271,1.26900269,3190.9,3190.8,0.31353]
[1736838392671,1.58253269,3190.9,3190.8,0.31353]
[1736838392869,0.31354,3190.8,3190.7,3.52134]
[1736838393177,1.27274,3190.8,3190.7,2.4434]
[1736838393472,2.54174269,3190.8,3190.7,2.4434]
[1736838393973,0.78388,3190.7,3189.9,3.2078]
[1736838394172,2.49989186,3190.4,3189.9,3.2078]
[1736838394374,0.81299,3190.3,3190.2,0.31359]
[1736838394881,0.31361,3190.1,3190.0,0.31361]
[1736838395074,3.52141,3190.1,3190.0,0.31361]
[1736838395266,3.2078,3190.1,3190.0,0.31361]
[1736838396278,3.52141,3190.1,3190.0,0.31361]
[1736838396468,3.2078,3190.1,3190.0,0.31361]
[1736838396674,3.52141,3190.1,3190.0,0.31361]
[1736838397076,3.2078,3190.1,3190.0,0.31361]
[1736838401078,3.2078,3190.1,3189.8,0.31363]
[1736838401079,0.31363,3189.9,3189.8,0.31363]
[1736838401281,0.31365,3189.7,3189.6,0.31365]
[1736838401481,0.31364,3189.8,3189.7,0.31364]
[1736838401978,0.31364,3189.8,3189.3,3.7151]
[1736838401979,2.49989186,3189.8,3189.3,3.7151]
[1736838402183,0.31366,3189.6,3189.5,0.31366]
[1736838402388,0.507,3189.7,3189.3,3.2078]
[1736838402683,0.82066,3189.7,3189.6,0.31366]
[1736838404279,0.31366,3189.6,3189.5,0.31366]
[1736838404578,0.31367,3189.5,3189.4,0.31367]
[1736838404780,0.78207,3189.5,3189.4,0.31367]
[1736838405181,1.03287,3189.5,3189.4,0.31367]
[1736838405683,0.7192,3189.5,3189.4,0.31367]
[1736838409492,0.2508,3189.5,3189.4,0.31367]
[1736838409686,0.2508,3189.5,3189.4,0.83447]
[1736838411280,0.2941705,3190.0,3189.4,0.83447]
[1736838411281,3.2078,3190.1,3189.4,1.5132]
[1736838411481,3.2078,3190.1,3190.0,0.31362]
[1736838412192,3.4585,3190.1,3190.0,0.31362]
[1736838412684,3.7092,3190.1,3190.0,0.31362]
[1736838412885,4.02281,3190.1,3190.0,0.31362]
[1736838413289,0.5014,3190.1,3190.0,0.31362]
[1736838413476,0.81501,3190.1,3190.0,0.31362]
[1736838413985,0.5014,3190.1,3190.0,0.31362]
[1736838414181,0.81501,3190.1,3190.0,0.31362]
[1736838414881,0.5014,3190.1,3190.0,0.31362]
[1736838419897,0.81501,3190.1,3190.0,0.31362]
[1736838420491,0.5014,3190.1,3190.0,0.31362]
[1736838422500,0.5014,3190.1,3190.0,1.30462]
[1736838423003,15.66566,3193.2,3190.0,1.30462]
[1736838423004,3.7121,3191.0,3190.9,0.31353]
[1736838423403,4.4955,3191.0,3190.9,0.31353]
[1736838424095,1.7793,3191.0,3190.9,0.31353]
[1736838424597,1.275,3191.0,3190.9,0.31353]
[1736838441910,1.58852,3191.0,3190.9,0.31353]
[1736838442108,4.79632,3191.0,3190.9,0.31353]
[1736838442619,4.4828,3191.0,3190.3,0.78396]
[1736838442909,2.81347186,3190.5,3190.4,0.31356]
[1736838443114,2.49989186,3190.5,3189.8,0.78408]
[1736838443311,0.79638,3190.4,3190.3,0.31358]
[1736838443816,0.31362,3190.1,3190.0,0.31361]
[1736838444207,5.70769186,3190.2,3189.7,3.2078]
[1736838444421,0.31364,3189.8,3189.7,0.31364]
[1736838444910,0.31362,3190.0,3189.9,0.31362]
[1736838446115,0.31363,3189.9,3189.8,0.31363]
[1736838446311,0.81363,3189.9,3189.8,0.31363]
[1736838446512,0.5,3189.9,3189.8,0.31363]
[1736838446714,0.81363,3189.9,3189.8,0.31363]
[1736838447119,0.5,3189.9,3189.8,0.31363]
[1736838447316,0.81363,3189.9,3189.8,0.31363]
[1736838447716,0.5,3189.9,3189.8,0.31363]
[1736838448221,0.81363,3189.9,3189.8,0.31363]
[1736838448521,0.5,3189.9,3189.8,0.31363]
[1736838449124,0.2411,3190.0,3189.9,0.31363]
[1736838453525,0.80542,3190.0,3189.9,0.31363]
[1736838453723,3.30531186,3190.0,3189.9,0.31363]
[1736838453918,0.31365,3189.8,3189.7,0.31363]
[1736838454117,6.19949186,3190.0,3189.6,0.31365]
[1736838454118,0.31366,3189.7,3189.6,0.31365]
[1736838454533,1.28547218,3189.9,3189.2,3.66609975]
[1736838454733,1.28547218,3189.9,3189.7,0.31364]
[1736838454734,0.31364,3189.8,3189.7,0.31364]
[1736838455031,0.31366,3189.7,3189.6,0.31365]
[1736838456122,0.31368,3189.5,3189.4,0.31366]
[1736838456630,0.31366,3189.6,3189.5,0.31366]
[1736838456819,2.81354186,3189.7,3189.6,0.31366]
[1736838457220,0.31365,3189.7,3189.6,0.31366]
[1736838457426,0.31365,3189.8,3189.7,0.31364]
[1736838458326,4.09900642,3189.9,3189.8,0.31364]
[1736838458629,1.30483,3189.9,3189.8,0.31364]
[1736838461933,0.31364,3189.8,3189.7,0.31364]
[1736838463135,3.49109186,3189.9,3189.2,0.498]
[1736838463430,0.81315,3189.7,3189.6,0.31366]
[1736838463830,0.81315,3189.7,3189.2,0.498]
[1736838463831,0.4995,3189.7,3189.2,0.498]
[1736838464130,0.4995,3189.7,3189.4,0.31367]
[1736838464131,0.31367,3189.5,3189.4,0.31367]
[1736838464532,0.55497,3189.5,3189.4,0.31367]
[1736838466127,0.2413,3189.5,3189.4,0.31367]
[1736838466734,0.55497,3189.5,3189.4,0.31367]
[1736838468328,0.2413,3189.5,3189.4,0.31367]
[1736838469131,0.55497,3189.5,3189.4,0.31367]
[1736838469328,0.2413,3189.5,3189.4,0.31367]
[1736838475540,0.4921,3189.5,3189.4,0.31367]
[1736838482336,0.80577,3189.5,3189.4,0.31367]
[1736838482938,0.4921,3189.5,3189.4,0.31367]
[1736838487748,0.80577,3189.5,3189.4,0.31367]
[1736838488048,1.2759,3189.5,3189.4,0.31367]
[1736838488349,1.58957,3189.5,3189.4,0.31367]
[1736838488546,1.2759,3189.5,3188.8,3.2078]
[1736838488748,0.3137,3189.3,3189.2,0.31368]
[1736838489149,1.2495,3189.3,3189.2,0.31368]
[1736838489447,1.2495,3189.3,3189.1,0.31369]
[1736838489448,0.31371,3189.2,3189.1,0.31369]
[1736838489745,0.79891,3189.2,3189.1,0.31369]
[1736838490140,0.736,3189.2,3189.1,0.31369]
[1736838491246,1.04969,3189.2,3189.1,0.31369]
[1736838492647,0.31372,3189.0,3188.9,0.31371]
[1736838492835,1.0497,3189.2,3189.1,0.3137]
[1736838493846,0.9775,3189.2,3188.7,0.4771]
[1736838494148,2.81361186,3189.1,3189.0,0.31371]
[1736838495249,0.31373,3188.8,3188.7,0.31374]
[1736838495448,2.49989186,3188.8,3188.7,0.31374]
[1736838495638,3.2078,3188.9,3188.8,0.31373]
[1736838495950,0.9775,3189.2,3189.1,0.3137]
[1736838496644,1.29119,3189.2,3189.1,0.3137]
[1736838497444,0.31373,3188.9,3188.8,0.31372]
[1736838497847,3.47739186,3189.2,3188.7,3.2078]
[1736838498046,0.31373,3189.0,3188.9,0.31372]
[1736838498245,3.79109186,3189.2,3189.1,0.3137]
[1736838498952,3.47739186,3189.2,3188.7,3.2078]
[1736838499152,0.31372,3189.1,3189.0,0.31371]
[1736838501547,0.31373,3188.9,3188.8,0.31372]
[1736838501947,0.31374,3188.8,3188.7,0.31374]
[1736838502147,4.26164186,3189.2,3188.6,0.4799]
[1736838502348,0.31374,3188.9,3188.8,0.31372]
[1736838505453,3.79109186,3189.2,3189.1,0.3137]
[1736838509251,4.08536973,3189.2,3189.1,0.3137]
[1736838510151,3.79109186,3189.2,3189.1,0.3137]
[1736838510348,0.78657787,3189.2,3189.1,0.3137]
[1736838510549,0.4923,3189.2,3189.1,0.3137]
[1736838512458,0.4923,3189.2,3188.7,2.02337]
[1736838512459,2.99219186,3189.2,3188.7,2.02337]
[1736838512656,0.31373,3188.9,3188.8,0.31372]
[1736838513163,3.52153,3188.9,3188.8,0.31372]
[1736838513357,5.70769186,3188.9,3188.6,0.4799]
[1736838513552,0.81894,3188.8,3188.7,0.31374]
[1736838513851,0.31375,3188.7,3188.6,0.31375]
[1736838515060,0.55545,3188.7,3188.6,0.31375]
[1736838521354,0.2417,3188.7,3188.3,0.4714]
[1736838521656,2.49989186,3188.4,3188.1,3.2078]
[1736838521865,0.31379,3188.2,3188.1,3.5216]
[1736838522259,3.6813,3188.2,3187.9,0.9828]
[1736838522458,0.80801,3188.1,3188.0,0.31381]
[1736838522651,3.30790186,3188.1,3188.0,0.31381]
[1736838522856,0.31383,3187.9,3187.8,0.31382]
[1736838523160,0.31382,3188.0,3187.9,0.31381]
[1736838525163,0.31383,3187.9,3187.8,0.31383]
[1736838525561,3.28836973,3188.1,3187.7,0.31383]
[1736838525562,0.31384,3187.8,3187.7,0.31383]
[1736838525759,8.20758372,3187.8,3187.0,0.31391]
[1736838525967,0.3139,3187.1,3187.0,0.31391]
[1736838526462,1.2935,3187.1,3187.0,0.31391]
[1736838526761,1.2935,3187.1,3186.6,0.4709]
[1736838526762,0.31391,3187.0,3186.9,0.31392]
[1736838526964,3.30250186,3187.0,3186.9,0.31392]
[1736838527164,3.30250186,3187.0,3186.8,0.31393]
[1736838527466,2.98859186,3187.0,3186.6,0.4709]
[1736838527661,2.98859186,3187.0,3186.7,0.31394]
[1736838527662,0.31393,3186.8,3186.7,0.31394]
[1736838527864,0.31393,3186.8,3186.5,0.5073]
[1736838527865,3.2078,3186.8,3186.5,0.5073]
[1736838528064,0.31395,3186.6,3186.5,0.82126]
[1736838528266,0.31396,3186.6,3186.2,3.6787]
[1736838528465,2.49989186,3186.7,3186.2,4.1821]
[1736838528769,0.31398,3186.3,3186.2,4.02518]
[1736838529367,0.56498,3186.3,3186.2,4.02518]
[1736838529563,0.251,3186.3,3186.2,4.02518]
[1736838529761,0.56498,3186.3,3186.2,3.7112]
[1736838530073,0.251,3186.3,3186.2,4.02519]
[1736838531159,0.56498,3186.3,3186.2,3.2078]
[1736838531557,1.50108,3186.3,3186.2,3.2078]
[1736838532161,1.1871,3186.3,3185.8,0.4758]
[1736838532363,2.49989186,3186.1,3186.0,0.31401]
[1736838535169,2.74189186,3186.1,3186.0,0.31401]
[1736838535876,3.05589186,3186.1,3186.0,0.31401]
[1736838536066,2.74189186,3186.1,3186.0,0.31401]
[1736838536267,3.05589186,3186.1,3186.0,0.31401]
[1736838537774,0.31402,3186.0,3185.9,0.31401]
[1736838538373,3.05590186,3186.1,3186.0,0.31401]
[1736838539277,2.74189186,3186.1,3186.0,0.31401]
[1736838542870,0.242,3186.1,3186.0,0.31401]
[1736838546677,0.31401,3186.0,3185.9,0.31401]
[1736838547070,0.78991,3186.0,3185.9,0.31401]
[1736838547269,0.4759,3186.0,3185.6,0.9413]
[1736838547469,0.31402,3185.9,3185.8,0.31402]
[1736838548571,0.31404,3185.8,3185.7,0.31403]
[1736838548777,2.81393186,3185.8,3185.7,0.31403]
[1736838548970,2.49989186,3185.8,3184.8,3.2078]
[1736838549167,2.81396186,3185.5,3185.4,0.31406]
[1736838549375,2.81396186,3185.5,3185.3,0.4895]
[1736838549376,2.75099186,3185.5,3185.3,0.4895]
[1736838549572,3.06506186,3185.5,3185.4,0.31407]
[1736838549770,0.31408,3185.3,3185.2,0.82598]
[1736838550173,0.31408,3185.4,3185.3,0.31407]
[1736838550979,0.31408,3185.3,3185.2,0.82598]
[1736838551489,0.31411,3185.0,3184.9,0.78841]
[1736838551670,2.81400186,3185.0,3184.9,0.4743]
[1736838551874,2.81400186,3185.0,3184.9,0.78842]
[1736838552174,2.81400186,3185.0,3184.9,0.31412]
[1736838552782,2.49989186,3185.0,3184.6,0.9625]
[1736838552984,0.31413,3184.8,3184.7,0.31413]
[1736838553180,0.4894,3184.9,3184.6,0.9625]
[1736838553380,2.81403186,3184.7,3184.6,1.27664]
[1736838553684,2.49989186,3184.7,3184.3,0.36767138]
[1736838553874,3.2078,3185.1,3184.5,0.7854]
[1736838554180,2.98929186,3185.3,3185.2,0.31409]
[1736838554479,3.4589,3185.5,3185.4,0.31407]
[1736838557489,3.4589,3185.5,3185.2,0.9565]
[1736838557690,2.81397186,3185.3,3185.2,0.31408]
[1736838558179,2.49989186,3185.3,3184.9,0.48]
[1736838558494,2.49989186,3185.0,3184.7,0.4669]
[1736838558689,0.31412,3184.9,3184.8,0.31412]
[1736838559082,2.49989186,3185.0,3184.7,0.4669]
[1736838559286,3.2078,3185.1,3184.7,0.4669]
[1736838559586,3.35071958,3185.3,3185.2,0.31409]
[1736838559787,0.2421,3185.3,3185.2,0.31409]
[1736838561588,0.4932,3185.3,3185.2,0.31409]
[1736838567083,0.4932,3185.3,3185.2,6.02178186]
[1736838567487,0.4932,3185.3,3185.2,3.52189]
[1736838569394,0.48979404,3185.3,3185.2,3.52189]
[1736838574003,0.48979404,3185.3,3185.2,4.01739]
[1736838576289,0.48979404,3185.3,3185.2,6.51728186]
[1736838576501,0.48979404,3185.3,3185.2,11.51728186]
[1736838577507,0.48979404,3185.3,3185.2,6.51728186]
[1736838580308,1.27459404,3185.3,3185.2,6.51728186]
[1736838581310,0.29464772,3186.5,3186.4,0.31397]
[1736838581607,0.9697,3186.5,3186.4,0.31397]
[1736838581815,1.28366,3186.5,3186.4,0.31397]
[1736838582506,2.03786,3186.5,3186.4,0.31397]
[1736838585112,1.7239,3186.5,3186.4,0.31397]
[1736838588317,0.251,3186.5,3186.4,0.31397]
[1736838596527,1.0355,3186.5,3186.4,0.31397]
[1736838596731,1.33014772,3186.5,3186.4,0.31397]
[1736838597625,1.64410772,3186.5,3186.4,0.31397]
[1736838598232,2.49989186,3186.2,3186.1,0.314]
[1736838599129,3.45799186,3186.2,3186.1,0.314]
[1736838600124,6.66579186,3186.2,3186.1,0.314]
[1736838600320,3.75263958,3186.2,3186.1,0.314]
[1736838600627,3.45799186,3186.2,3186.1,0.314]
[1736838601328,0.9581,3186.2,3186.1,0.314]
[1736838602431,3.45799186,3186.2,3186.1,0.314]
[1736838602933,0.9581,3186.2,3186.1,0.314]
[1736838604335,1.33014772,3186.5,3186.4,0.31397]
[1736838604534,1.0355,3186.5,3186.4,0.31397]
[1736838610041,1.4938,3187.4,3187.3,0.31388]
[1736838611142,1.7447,3187.4,3187.3,0.31388]
[1736838613740,2.05857,3187.4,3187.3,0.31388]
[1736838615034,1.7447,3187.4,3186.9,3.2078]
[1736838615246,2.81380186,3187.0,3186.9,0.31392]
[1736838615546,3.2078,3187.2,3187.1,0.3139]
[1736838616041,4.6353,3187.2,3187.1,0.3139]
[1736838618950,7.13519186,3187.2,3187.1,0.3139]
[1736838619152,7.42983958,3187.2,3187.1,0.3139]
[1736838619650,7.74372958,3187.2,3187.1,0.3139]
[1736838620251,7.42983958,3187.2,3187.1,0.3139]
[1736838622650,7.74372958,3187.2,3187.1,0.3139]
[1736838623344,7.42983958,3187.2,3186.7,0.78484]
[1736838623546,3.2078,3186.8,3186.7,0.31394]
[1736838625649,3.52173,3186.8,3186.7,0.31394]
[1736838626748,3.2078,3186.8,3186.7,0.31394]
[1736838627750,0.29464772,3187.1,3187.0,0.31391]
[1736838627955,4.6353,3187.2,3187.1,0.3139]
[1736838628961,3.2078,3187.2,3187.1,0.3139]
[1736838630054,2.49989186,3187.3,3186.8,3.6791]
[1736838630362,0.9361,3187.1,3187.0,0.31391]
[1736838630563,1.25,3187.1,3187.0,0.31391]
[1736838631057,1.54464772,3187.1,3187.0,0.31391]
[1736838631453,1.23074772,3187.1,3187.0,0.31391]
[1736838631758,1.54464772,3187.1,3187.0,0.31391]
[1736838632452,1.23074772,3187.1,3187.0,0.31391]
[1736838633265,0.29464772,3187.1,3187.0,0.31391]
[1736838633461,3.2078,3187.2,3186.8,0.9623]
[1736838633462,3.2078,3187.2,3187.1,0.3139]
[1736838635461,5.95869186,3187.2,3186.5,0.7849]
[1736838635659,0.31394,3186.8,3186.7,0.31393]
[1736838636160,1.71534,3186.8,3186.7,0.31393]
[1736838636458,4.6092,3186.8,3186.5,0.482]
[1736838636665,0.31395,3186.7,3186.6,0.31394]
[1736838637358,4.90384772,3186.8,3186.3,0.4697]
[1736838637564,2.49989186,3186.6,3186.1,0.4549]
[1736838637766,0.31398,3186.5,3186.4,0.31397]
[1736838638860,2.49989186,3186.6,3186.1,0.4549]
[1736838639061,0.31396,3186.6,3186.5,0.31395]
[1736838639269,0.31395,3186.7,3186.6,0.31394]
[1736838640158,4.90384772,3186.8,3186.7,0.31394]
[1736838640367,3.50244772,3186.8,3186.7,0.31394]
[1736838640570,3.2078,3186.8,3186.7,0.31394]
[1736838643869,3.52173,3186.8,3186.7,0.31394]
[1736838644660,3.2078,3186.8,3186.7,0.31394]
[1736838645166,3.52173,3186.8,3186.7,0.31394]
[1736838645361,3.2078,3186.8,3186.7,0.31394]
[1736838646669,3.52173,3186.8,3186.7,0.31394]
[1736838649075,3.2078,3186.8,3186.4,0.4808]
[1736838649368,0.31396,3186.6,3186.5,0.31395]
[1736838649570,2.81385186,3186.6,3186.5,0.31395]
[1736838650169,3.27625186,3186.6,3186.5,0.31395]
[1736838652169,2.96229186,3186.6,3186.1,0.4549]
[1736838652370,5.70769186,3186.3,3185.8,0.4715]
[1736838652571,1.28911,3186.2,3186.1,0.31399]
[1736838652771,1.58375772,3186.2,3186.1,0.31399]
[1736838653269,1.26974772,3186.2,3185.8,0.4715]
[1736838653466,2.81391186,3186.0,3185.9,0.31402]
[1736838653666,0.31403,3185.9,3185.8,0.31402]
[1736838655579,2.49989186,3186.0,3185.7,0.4686]
[1736838655882,0.31403,3185.8,3185.7,0.78264]
[1736838656174,0.31404,3185.7,3185.6,3.52185]
[1736838660570,0.56514,3185.7,3185.6,3.52185]
[1736838662679,0.56514,3185.7,3185.6,3.2078]
[1736838663177,0.31409,3185.3,3185.1,3.2078]
[1736838663384,0.3141,3185.1,3185.0,1.161083]
[1736838663584,0.3141,3185.1,3185.0,0.78]
[1736838663879,0.3141,3185.1,3185.0,0.4659]
[1736838664482,2.79453958,3185.3,3184.9,0.31411]
[1736838664678,2.95689186,3185.0,3184.7,3.6599]
[1736838664984,0.31413,3184.9,3184.8,0.31413]
[1736838665481,0.31413,3184.8,3184.7,3.97403]
[1736838666782,0.78412,3184.9,3184.8,0.31413]
[1736838666985,0.31413,3184.8,3184.7,3.6599]
[1736838667174,0.47,3184.9,3184.2,3.2078]
[1736838667478,2.49989186,3184.4,3184.3,0.80437]
[1736838667787,2.81406186,3184.4,3184.3,0.80437]
[1736838667980,2.49989186,3184.4,3184.3,0.80437]
[1736838668176,2.81406186,3184.4,3184.3,0.80437]
[1736838669985,3.28956186,3184.4,3184.3,0.80437]
[1736838670182,3.28956186,3184.4,3184.3,0.4902]
[1736838670389,0.31418,3184.3,3184.2,0.31418]
[1736838670886,0.81138,3184.3,3184.2,0.31418]
[1736838672990,0.4972,3184.3,3183.9,0.4848]
[1736838673190,0.31419,3184.2,3184.1,0.31419]
[1736838673486,0.81138,3184.3,3184.2,0.31419]
[1736838674789,0.4972,3184.3,3184.2,0.31419]
[1736838674982,2.97539186,3184.4,3184.3,0.31418]
[1736838675492,3.28956186,3184.4,3184.3,0.31418]
[1736838676484,2.97539186,3184.4,3184.3,0.31418]
[1736838677392,2.97539186,3184.4,3183.9,0.4848]
[1736838677694,0.31419,3184.3,3184.2,0.31418]
[1736838679693,0.56539,3184.3,3184.2,0.31418]
[1736838680695,1.35049,3184.3,3184.2,0.31418]
[1736838682389,1.35048,3184.3,3184.2,0.31418]
[1736838685391,1.0363,3184.3,3183.9,0.4848]
[1736838685599,0.3142,3184.2,3184.1,0.31419]
[1736838692201,0.54598698,3184.3,3183.9,1.27035]
[1736838692394,0.86017698,3184.3,3184.2,0.31419]
[1736838693500,0.56539,3184.3,3184.2,0.31419]
[1736838693701,0.86017698,3184.3,3184.2,0.31419]
[1736838694400,0.31421,3184.1,3184.0,0.3142]
[1736838694701,2.81410186,3184.1,3184.0,0.3142]
[1736838695999,0.54598698,3184.3,3183.9,1.27034]
[1736838696195,0.54598698,3184.3,3184.2,0.31419]
[1736838698202,0.86016698,3184.3,3184.2,0.31419]
[1736838699999,0.54598698,3184.3,3184.2,0.31419]
[1736838704699,0.54598698,3184.3,3184.2,3.52199]
[1736838704902,0.9252,3185.2,3185.1,0.3141]
[1736838705803,0.9396,3185.6,3185.5,0.31405]
[1736838705998,1.1907,3185.6,3185.5,0.31405]
[1736838707906,0.2511,3185.6,3185.5,0.31405]
[1736838733128,1.6827,3185.6,3185.5,0.31405]
[1736838735429,1.99675,3185.6,3185.5,0.31405]
[1736838735727,1.6827,3185.6,3185.2,0.78521]
[1736838735928,3.52187,3185.5,3185.4,0.31406]
[1736838736731,3.2078,3185.5,3184.9,0.7853]
[1736838736929,0.78518,3185.4,3184.8,3.2078]
[1736838737125,0.78518,3185.4,3184.5,1.27708]
[1736838737126,2.81401186,3185.0,3184.9,0.31411]
[1736838737425,0.31413,3184.9,3184.8,0.31412]
[1736838737726,0.4807,3184.9,3184.8,0.31412]
[1736838737930,0.79482,3184.9,3184.8,0.31412]
[1736838738827,0.31414,3184.7,3184.3,0.78545]
[1736838739023,2.49989186,3184.4,3184.3,0.31418]
[1736838739421,2.81406186,3184.4,3184.3,0.31418]
[1736838739824,2.49989186,3184.4,3184.3,0.31418]
[1736838741035,0.491,3184.5,3184.4,0.31417]
[1736838753541,2.163,3184.8,3184.4,0.31417]
[1736838753542,2.163,3184.8,3184.7,0.31414]
[1736838753736,2.6331,3184.8,3184.7,0.31414]
[1736838754037,5.13299186,3184.8,3184.7,0.31414]
[1736838755439,5.38409186,3184.8,3184.7,0.31414]
[1736838755733,0.31414,3184.7,3184.6,0.31414]
[1736838756331,5.38409186,3184.8,3184.7,0.31414]
[1736838757141,5.38409186,3184.8,3184.2,1.25636]
[1736838757442,5.38409186,3184.8,3184.5,0.31415]
[1736838757635,0.31415,3184.6,3184.5,0.31415]
[1736838761535,0.31417,3184.5,3184.4,0.31416]
[1736838770943,3.2078,3184.7,3184.6,0.31415]
[1736838772352,6.02183186,3184.7,3184.6,0.31415]
[1736838774753,2.81403186,3184.7,3184.6,0.31415]
[1736838775345,1.49896441,3184.7,3184.6,0.31415]
[1736838777856,0.31416,3184.6,3184.5,0.31415]
[1736838778158,1.49898441,3184.6,3184.5,0.31415]
[1736838780362,1.18482441,3184.6,3184.2,1.25636]
[1736838780552,1.49899441,3184.4,3184.3,0.31418]
[1736838781347,1.18482441,3184.4,3184.3,0.31418]
[1736838781759,0.31416,3184.5,3184.2,1.25636]
[1736838782056,0.31416,3184.5,3184.4,0.31416]
[1736838783155,0.56536,3184.5,3184.4,0.31416]
[1736838789267,0.2512,3184.5,3184.4,0.31416]
[1736838792567,0.56536,3184.5,3184.4,0.31416]
[1736838793370,0.31418,3184.4,3184.3,0.31417]
[1736838793570,1.96850441,3184.4,3184.3,0.31417]
[1736838796774,2.75350441,3184.4,3184.3,0.31417]
[1736838797376,3.00470441,3184.4,3184.3,0.31417]
[1736838799273,2.69052441,3184.4,3184.2,0.4709]
[1736838799477,1.21338,3184.3,3184.2,0.78508]
[1736838801874,1.5057,3184.4,3184.3,0.31418]
[1736838802180,2.69052441,3184.4,3184.3,0.31418]
[1736838802680,3.00469441,3184.4,3184.3,0.31418]
[1736838802982,2.69052441,3184.4,3184.3,0.31418]
[1736838803574,3.00469441,3184.4,3184.3,0.31418]
[1736838804874,2.69052441,3184.4,3184.3,0.31418]
[1736838806169,3.00469441,3184.4,3184.3,0.31418]
[1736838806574,2.69052441,3184.4,3184.3,0.31418]
[1736838807480,3.00469441,3184.4,3184.3,0.31418]
[1736838810679,2.69052441,3184.4,3184.3,0.31418]
[1736838810881,3.00469441,3184.4,3184.3,0.31418]
[1736838812290,2.69052441,3184.4,3184.3,0.31418]
[1736838814790,3.00469441,3184.4,3184.3,0.31418]
[1736838814990,2.69052441,3184.4,3184.3,0.31418]
[1736838817904,1.5057,3184.4,3184.3,0.31418]
[1736838818094,1.0362,3184.4,3184.3,0.31418]
[1736838818892,1.0362,3184.4,3184.3,0.78128]
[1736838820694,1.0362,3184.4,3184.3,3.98908]
[1736838823096,2.22102441,3184.4,3184.3,3.98908]
[1736838823298,1.0362,3184.4,3184.3,3.98908]
[1736838835000,1.0362,3184.4,3184.3,5.17390441]
[1736838841511,1.0362,3184.4,3184.3,10.17390441]
[1736838842405,3.2078,3185.6,3184.3,9.85972441]